Cogmind - Beta 9 @@@ ROGUE MODE // 2019.10.26 @ 15:52:33 Player: Alexbot Result: Destroyed by S-43 Plague with Heavy Machine Gun Performance ------------- Evolutions (9) 4500 Regions Visited (24) 4800 Robots Destroyed (239) 1195 Value Destroyed (9355) 9355 Prototype IDs (62) 1240 Alien Tech Used (0) 0 Bonus (14810) 14810 TOTAL SCORE: 35900 Bonus ------- Pure Core 7143 High Alert Combat Kills 1967 Follower Combat Kills 1928 Network Hubs Disabled 200 Aligned with FarCom 300 Met Data Miner 300 Built Enhanced Grunts 300 A7 Reached Mainframe 300 Met R17 at Cetus 500 Met R17 at Research 2000 Friendly Fire -128 Cogmind --------- Core Integrity 0/1600 Matter 294/300 Energy 100/100 System Corruption 22% Temperature Cool (0) Location -1/Access Parts ------- Power (3) Propulsion (5) Utility (13) Experimental Optical Array Improved Armor Integrity Analyzer Advanced Transmission Jammer Weapon (4) Nanosword Inventory (0) Peak State ------------ Power Micro Fission Core Micro Fission Core Micro Fission Core Propulsion Gyrokinetic Inverter Combat Gravmag System Combat Gravmag System Combat Gravmag System Improved Gyrokinetic Inverter Utility Improved Coolant Injector Energy Well Improved Matter Compressor Experimental Optical Array Improved Targeting Computer Advanced Transmission Jammer Improved Maneuvering Thrusters Improved Propulsion Shielding Improved Utility Shielding Light Regenerative Plating Advanced Force Field Hacking Suite Improved System Shield Weapon Gamma Rifle Gamma Rifle Quantum Rifle Enhanced Force Lance Inventory (Empty) [Rating: 150] Favorites ----------- Power Micro Fission Core Engine Light Angular Momentum Engine Power Core Micro Fission Core Reactor Quantum Reactor Propulsion Gyrokinetic Inverter Treads Centrium Heavy Treads Leg Aluminum Leg Wheel Compact Wheel Hover Unit Gyrokinetic Inverter Flight Unit Xenon Bombardment Thruster Utility Light Regenerative Plating Device Advanced Transmission Jammer Storage Superbattery Processor Experimental Optical Array Hackware Hacking Suite Protection Light Regenerative Plating Weapon Light Assault Rifle Energy Gun Precision Beam Rifle Energy Cannon Phase Cannon Ballistic Gun Light Assault Rifle Ballistic Cannon Magnetic Acceleration Cannon Launcher Precision Rocket Launcher Slashing Weapon Segregator Piercing Weapon Enhanced Force Lance Build | -11 -10 -10 -9 -9 -9 -8 -8 -7 -7 -7 -7 -6 -6 -6 -6 -6 -6 -5 -5 -5 -4 -3 -2 -1 ------- Run | Scr Mat Min Mat Min Exi Min Mat Fac Low Low Dat Pro Fac Ext Cet Arc Hub Fac Was Fac Fac Res Res Acc Slots Evolved 18 | . . . 2 . . . 2 2 . . . . 2 . . . . 2 . . 2 2 2 2 Power 2 | . . . . . . . 1 . . . . . . . . . . . . . . . . 1 Propulsion 3 | . . . . . . . 1 . . . . . . . . . . 1 . . 1 . . . Utility 11 | . . . 1 . . . . 2 . . . . 1 . . . . 1 . . 1 2 2 1 Weapon 2 | . . . 1 . . . . . . . . . 1 . . . . . . . . . . . Parts Attached 257 | 5 6 7 9 11 1 5 7 13 7 2 . 7 22 4 6 . 3 21 2 32 13 23 . 51 Power 30 | 1 . 1 1 2 . 2 1 3 1 . . . 2 1 1 . 1 3 . 2 . . . 8 Engine 14 | 1 . 1 1 2 . 1 1 3 . . . . 2 1 . . 1 . . . . . . . Core 12 | . . . . . . 1 . . 1 . . . . . . . . 3 . 2 . . . 5 Reactor 4 | . . . . . . . . . . . . . . . 1 . . . . . . . . 3 Propulsion 64 | 2 1 2 4 3 . . 1 3 1 . . 4 1 . 1 . 1 3 1 12 2 4 . 18 Treads 5 | . . . . . . . 1 . . . . 1 . . 1 . . . . . . . . 2 Leg 10 | . . 2 4 . . . . . 1 . . 1 . . . . . 1 . 1 . . . . Wheel 17 | 2 1 . . 2 . . . 3 . . . 2 1 . . . 1 2 . 2 1 . . . Hover 26 | . . . . . . . . . . . . . . . . . . . 1 9 1 4 . 11 Flight 6 | . . . . 1 . . . . . . . . . . . . . . . . . . . 5 Utility 81 | . 2 1 2 2 1 1 1 6 4 . . 2 10 1 . . . 9 . 8 6 11 . 14 Device 28 | . . 1 . 2 . . 1 . 1 . . 1 1 1 . . . 1 . 3 5 6 . 5 Storage 8 | . . . . . 1 . . . . . . 1 2 . . . . . . 2 . 2 . . Processor 14 | . 2 . 1 . . . . 3 1 . . . . . . . . . . 2 . 2 . 3 Hackware 6 | . . . . . . . . 1 1 . . . 2 . . . . . . . 1 1 . . Protection 25 | . . . 1 . . 1 . 2 1 . . . 5 . . . . 8 . 1 . . . 6 Artifact . | . . . . . . . . . . . . . . . . . . . . . . . . . Weapon 82 | 2 3 3 2 4 . 2 4 1 1 2 . 1 9 2 4 . 1 6 1 10 5 8 . 11 Energy Gun 30 | 2 . 1 1 . . 2 3 . . . . 1 2 . 2 . . 5 . 3 2 . . 6 Energy Cannon 11 | . . . 1 . . . . . . 1 . . 2 . . . 1 . . 1 . 3 . 2 Ballistic Gun 20 | . 1 1 . 4 . . 1 1 1 . . . 2 1 2 . . . . 3 1 . . 2 Ballistic Cannon 7 | . . . . . . . . . . 1 . . 2 1 . . . . . 2 . 1 . . Launcher 9 | . 2 1 . . . . . . . . . . 1 . . . . . 1 1 2 1 . . Special Weapon . | . . . . . . . . . . . . . . . . . . . . . . . . . Impact Weapon . | . . . . . . . . . . . . . . . . . . . . . . . . . Slashing Weapon 4 | . . . . . . . . . . . . . . . . . . 1 . . . 2 . 1 Piercing Weapon 1 | . . . . . . . . . . . . . . . . . . . . . . 1 . . Special Melee Weapon . | . . . . . . . . . . . . . . . . . . . . . . . . . Unidentified Prototypes 20 | . . 1 . . . . 2 . . . . 2 2 . 3 . 1 3 . 1 . 3 . 2 Parts Lost 93 | . 1 4 3 7 . . 1 . 2 . . 7 . . 1 . 3 12 1 12 . . . 39 Power 13 | . . 1 . 1 . . . . . . . 2 . . . . . 1 . . . . . 8 Propulsion 20 | . . 1 1 1 . . . . 1 . . 1 . . . . . 2 1 3 . . . 9 Utility 26 | . . . . 3 . . 1 . 1 . . 2 . . . . 1 3 . 3 . . . 12 Weapon 34 | . 1 2 2 2 . . . . . . . 2 . . 1 . 2 6 . 6 . . . 10 Highest Loss Streak 18 | . 1 2 2 3 . . 1 . 2 . . 4 . . 1 . 3 8 1 5 . . . 18 Average Slot Usage (%) 88 | . 97 96 94 92 93 99 83 97 93 99 100 78 87 93 89 93 92 81 53 75 87 99 91 78 Engine 6 | . 14 12 11 11 11 9 2 13 11 7 7 3 9 13 11 6 6 . . . . . . . Core 3 | . . . . . . 1 9 1 3 7 7 1 . . . . . 10 5 7 10 9 8 7 Treads 1 | . . . . . . . 2 1 . . . 5 . . 1 6 6 4 . . . . . . Leg 3 | . . 21 21 8 . . . . . 7 7 7 . . . . . 3 5 6 . . . . Wheel 8 | . 28 6 . 12 22 22 18 21 19 15 15 7 12 13 11 6 6 5 7 2 2 . . . Hover 4 | . . . . . . . . . . . . . . . . . . . 3 11 21 23 21 16 Device 11 | . . 13 11 16 22 11 14 11 9 7 7 6 6 13 13 13 13 9 . 6 22 22 13 12 Storage 5 | . . . . . 4 11 9 7 7 7 7 10 8 6 6 6 6 5 1 1 5 8 8 6 Processor 4 | . 25 14 11 10 . . . 3 2 7 7 7 2 . . . . . . 2 3 4 8 9 Hackware 3 | . . . . . . . . 3 7 7 7 7 9 . . . . . . . 4 5 8 5 Protection 10 | . . . 10 1 . 10 1 9 9 7 7 1 9 20 20 20 19 19 23 18 5 4 4 6 Energy Gun 4 | . 14 7 9 . . 7 20 19 9 . . 3 2 . 2 6 2 7 . 1 2 1 . 1 Energy Cannon 3 | . . . 10 . . . . . . 6 7 3 6 11 . . 3 1 . 2 . 7 8 3 Ballistic Gun 6 | . 5 5 1 30 33 25 6 3 8 7 7 1 3 1 7 13 12 4 . 11 . . . . Ballistic Cannon 2 | . . . . . . . . . . 6 7 7 7 6 4 . . . . . 5 2 . . Launcher 3 | . 7 13 8 . . . . . . . . . 3 6 6 6 5 . 4 . 3 4 4 1 Naked Turns . | . . . . . . . . . . . . . . . . . . . . . . . . . Heaviest Build 91 | 6 8 11 18 10 12 24 27 48 48 48 48 48 75 76 77 77 79 68 69 73 66 91 83 86 Greatest Support 152 | 32 32 32 23 23 20 20 20 48 48 32 32 32 40 40 40 12 12 80 20 64 81 107 107 152 Greatest Overweight (x) 6 | . . . 1 2 . 1 1 1 1 1 1 2 1 1 6 6 6 5 6 6 1 1 . 1 Average Overweight (x) . | . . . . . . . . . . . 1 . . 1 2 6 5 2 4 1 . . . . Largest Inventory Capacity . | . . . . . . . . . . . . . . . . . . . . . . . . . Average Capacity . | . . . . . . . . . . . . . . . . . . . . . . . . . Most Carried . | . . . . . . . . . . . . . . . . . . . . . . . . . Average Carried . | . . . . . . . . . . . . . . . . . . . . . . . . . Final Capacity . | . . . . . . . . . . . . . . . . . . . . . . . . . Final Carried . | . . . . . . . . . . . . . . . . . . . . . . . . . Class Distribution -------------------- 29% | Mutant 18% | Scavenger-Mutant 12% | Hacker-Mutant 8% | Tank 6% | Scavenger-Skirmisher 5% | Derelict-Mutant 4% | Scavenger-Gunner 3% | Scavenger-Tank Dominant Class ---------------- Mutant | -10/Materials Scavenger-Mutant | -10/Mines Mutant | -9/Materials Scavenger-Gunner | -9/Mines Scavenger-Gunner | -9/Exiles Scavenger-Skirmisher | -8/Mines Scavenger-Skirmisher | -8/Materials Tank | -7/Factory Mutant | -7/Lower Caves Derelict-Mutant | -7/Lower Caves Derelict-Mutant | -7/Data Miner Scavenger-Mutant | -6/Proximity Caves Hacker-Mutant | -6/Factory Mutant | -6/Extension Mutant | -6/Cetus Scavenger-Tank | -6/Archives Scavenger-Mutant | -6/Hub_04(d) Mutant | -5/Factory Mutant | -5/Waste Scavenger-Skirmisher | -5/Factory Mutant | -4/Factory Scout | -3/Research Hacker-Mutant | -2/Research Hacker-Mutant | -1/Access Resources | -11 -10 -10 -9 -9 -9 -8 -8 -7 -7 -7 -7 -6 -6 -6 -6 -6 -6 -5 -5 -5 -4 -3 -2 -1 ----------- Run | Scr Mat Min Mat Min Exi Min Mat Fac Low Low Dat Pro Fac Ext Cet Arc Hub Fac Was Fac Fac Res Res Acc Matter Collected 6123 | 149 159 286 191 183 . 58 43 140 158 29 . 208 479 143 322 56 693 455 . 875 262 715 . 519 Remotely . | . . . . . . . . . . . . . . . . . . . . . . . . . Salvage Created 9723 | . 210 306 462 167 . 139 81 387 256 . . 187 366 466 165 66 1911 1079 . 903 252 277 . 2043 Parts 492 | . 33 18 34 11 . 11 2 21 14 . . 7 19 24 8 1 88 32 . 43 13 12 . 101 Haulers Intercepted 11 | . 1 . . . . . 2 . . . . . 2 . . . 1 1 . 1 . 2 . 1 Recyclers Shooed 3 | . . . . . . . . . . . . . 1 . . . . . . 1 1 . . . Parts Field Recycled . | . . . . . . . . . . . . . . . . . . . . . . . . . Retrieved Matter . | . . . . . . . . . . . . . . . . . . . . . . . . . Parts Self-Destructed 32 | . . . . . . . . . 13 5 . 14 . . . . . . . . . . . . Prevented . | . . . . . . . . . . . . . . . . . . . . . . . . . Kills | -11 -10 -10 -9 -9 -9 -8 -8 -7 -7 -7 -7 -6 -6 -6 -6 -6 -6 -5 -5 -5 -4 -3 -2 -1 ------- Run | Scr Mat Min Mat Min Exi Min Mat Fac Low Low Dat Pro Fac Ext Cet Arc Hub Fac Was Fac Fac Res Res Acc Combat Hostiles Destroyed 183 | . 9 17 8 11 . 3 . 7 6 . . 4 3 8 3 1 41 16 . 14 4 . . 28 Melee 15 | . . . . . . . . . . . . . . . . . . . . . . . . 15 Guns 85 | . 2 2 5 9 . 3 . 6 6 . . . . . . 1 18 16 . 12 2 . . 3 Cannons 23 | . . . 1 2 . . . . . . . 4 3 6 . . . . . 2 2 . . 3 AOE 54 | . 7 15 2 . . . . . . . . . . 2 3 . 23 . . . . . . 2 Classes Destroyed 19 | . 5 2 2 1 . 1 . 1 . . . . 2 . . . 5 . . . . . . . Worker 15 | . 2 1 . . . . . . . . . . . . . . 7 . . . 2 1 . 2 Builder 6 | . . . 1 . . . . . . . . . 2 1 . . . 1 . 1 . . . . Tunneler 2 | . . 1 . . . . . . . . . . . . . . . . . . . 1 . . Hauler 11 | . 1 . . . . . 2 . . . . . 2 . . . 1 1 . 1 . 2 . 1 Recycler 6 | . . 1 1 . . . . 1 . . . . . . . . . . . 2 1 . . . Mechanic 2 | . . . . . . . . . . . . . . . . . 2 . . . . . . . Operator 1 | . . . . . . . . . . . . . . . . . 1 . . . . . . . Drone 1 | . . . . . . . . . . . . . 1 . . . . . . . . . . . Watcher 12 | . 2 . 3 . . . . 1 . . . . 1 . 1 . 1 . . 1 . . . 2 Swarmer 50 | . 8 11 . 5 . . . 3 3 . . . . . . . 4 . . 8 3 . . 5 Saboteur 1 | . . . . . . . . . . . . . . . . . 1 . . . . . . . Grunt 66 | . 1 6 5 . . 2 . 3 2 . . 3 . 6 3 . 22 9 . . . . . 4 Brawler 6 | . . . . . . . . 1 . . . . . . . . 2 2 . 1 . . . . Duelist 5 | . . . . . . 1 . . 1 . . 1 . . . . 2 . . . . . . . Protector 1 | . . . . . . . . . . . . . . . . . 1 . . . . . . . Sentry 19 | . . . 3 . . . . . . . . . 1 2 . 1 4 3 . 1 1 . . 3 Hunter 6 | . . . . . . . . . . . . . . . . . 5 . . . . . . 1 Programmer 23 | . . . . . . . . . . . . . 2 . . . . 2 . 4 . . . 15 Assembled 6 | . . . . 6 . . . . . . . . . . . . . . . . . . . . Best Kill Streak 10 | . 5 10 5 4 . 3 2 5 3 . . 2 2 2 2 1 9 8 . 5 3 1 . 5 Combat Bots Only 7 | . 4 4 3 4 . 3 . 4 3 . . 2 1 2 2 1 7 7 . 2 3 . . 5 Max Kills in Single Turn 6 | . 3 3 2 1 . 1 1 2 2 . . 1 1 1 2 1 6 2 . 2 1 1 . 2 Gunslinging 1 | . . . . . . . . . 1 . . . . . . . 1 . . . . . . . Exploded 3 | . 3 3 1 . . . . . . . . . . 1 2 . 2 . . . . . . 2 Melee 1 | . . . . . . . . . . . . . . . . . . . . . . . . 1 Uniques/NPCs Destroyed . | . . . . . . . . . . . . . . . . . . . . . . . . . Combat | -11 -10 -10 -9 -9 -9 -8 -8 -7 -7 -7 -7 -6 -6 -6 -6 -6 -6 -5 -5 -5 -4 -3 -2 -1 -------- Run | Scr Mat Min Mat Min Exi Min Mat Fac Low Low Dat Pro Fac Ext Cet Arc Hub Fac Was Fac Fac Res Res Acc Damage Taken 18008 | . 120 344 402 500 . 69 22 145 424 . . 789 300 266 414 37 1567 2780 67 2573 173 29 72 6915 Core 2595 | . 12 94 19 68 . 17 . 11 79 . . 109 35 36 13 14 98 174 . 187 12 . 14 1603 Absorbed by Shields 3179 | . . . . . . . . 30 48 . . . 23 271 432 39 1094 95 . . 43 30 76 998 Reduced by Siege Mode 68 | . . . . . . . . . . . . . . . . . . 46 . . . . . 22 Core Remaining (%) 83 | 100 . 57 . . . 74 100 . . . . 71 . . . . 76 . . 63 98 100 99 . Volleys Fired 668 | . 29 34 25 40 . 9 8 17 17 5 . 31 40 42 27 7 69 66 . 100 36 9 . 57 Largest 4 | . 2 1 1 3 . 3 3 3 3 1 . 3 4 3 1 3 3 4 . 4 2 1 . 2 Hottest 271 | . 90 65 56 101 . 103 148 177 150 90 . 166 271 223 43 150 240 246 . 163 123 113 . 150 Shots Fired 1178 | . 44 34 25 99 . 27 24 51 37 5 . 38 80 64 27 16 116 149 1 234 39 9 . 59 Gun 856 | . 37 13 19 96 . 27 24 51 37 . . 4 22 . 14 16 93 142 . 223 23 . . 15 Cannon 240 | . . . 1 3 . . . . . 5 . 34 57 62 . . . 7 . 10 10 9 . 42 Launcher 82 | . 7 21 5 . . . . . . . . . 1 2 13 . 23 . 1 1 6 . . 2 Special . | . . . . . . . . . . . . . . . . . . . . . . . . . Kinetic 653 | . 6 5 . 93 . 18 8 . 17 . . 29 36 12 14 14 88 66 . 225 13 . . 9 Thermal 350 | . 31 8 . . . 9 16 51 20 5 . 9 43 50 . 2 5 67 . 1 20 3 . 10 Explosive 80 | . 7 21 5 . . . . . . . . . 1 2 13 . 23 . . . 6 . . 2 Electromagnetic 95 | . . . 20 6 . . . . . . . . . . . . . 16 1 8 . 6 . 38 Robot Hit Streak 61 | . 10 7 14 7 . 4 6 21 11 . . 2 6 7 11 10 14 61 6 11 18 3 . 8 Robot Miss Streak 7 | . 4 2 3 4 . 2 3 2 1 . . 5 3 3 2 2 4 3 1 7 7 1 . 3 Penetration Max 1 | . . . . . . . . . . . . . . . . . 1 1 . . . . . . Secondary Targets 12 | . . . . . . 2 . 1 2 . . . . . . . 1 3 . 3 . . . . Max Gunslinging Chain 1 | . . . . . . 1 . 1 1 . . . . . . . 1 1 . 1 . . . . Shots Hit Robots 752 | . 24 19 21 54 . 17 14 38 27 . . 10 39 28 13 13 78 103 1 128 22 5 . 98 Core Hits 463 | . 19 28 23 23 . 9 4 14 11 . . 8 13 16 23 3 104 55 . 50 11 4 . 45 Critical Hits 42 | . . . . . . . . . . . . 2 1 . . 6 17 8 . 3 . . . 5 Critical Kills 17 | . . . . . . . . . . . . 1 . . . 1 9 3 . 1 . . . 2 Critical Parts Destroyed 21 | . . . . . . . . . . . . 1 1 . . 3 6 5 . 2 . . . 3 Melee Attacks 113 | . . . . . . . . . . . . . . . . . . . . . . 1 4 108 Impact . | . . . . . . . . . . . . . . . . . . . . . . . . . Slashing 58 | . . . . . . . . . . . . . . . . . . . . . . . . 58 Piercing 55 | . . . . . . . . . . . . . . . . . . . . . . 1 4 50 Sneak Attacks 7 | . . . . . . . . . . . . . . . . . . . . . . 1 . 6 Combat Hostiles . | . . . . . . . . . . . . . . . . . . . . . . . . . Follow-up Attacks . | . . . . . . . . . . . . . . . . . . . . . . . . . Damage Inflicted 28611 | . 681 1491 689 392 . 172 161 657 486 . . 389 1144 1061 1910 268 6632 3245 1 2364 1044 282 . 5542 Guns 10522 | . 253 123 307 334 . 172 161 657 486 . . . 386 . 257 268 1720 2949 . 1794 472 . . 183 Cannons 4489 | . . . 22 58 . . . . . . . 389 684 797 . . . 107 . 549 369 159 . 1355 Explosions 9932 | . 428 1368 360 . . . . . . . . . 74 264 1653 . 4891 171 1 . 203 . . 519 Melee 3608 | . . . . . . . . . . . . . . . . . . . . . . 123 . 3485 Ramming 60 | . . . . . . . . . . . . . . . . . 21 18 . 21 . . . . Kinetic 8095 | . 30 35 . 297 . 89 28 . 278 . . 263 478 231 257 250 1645 1341 . 2290 450 . . 133 Thermal 5145 | . 223 88 63 . . 83 133 657 208 . . 126 592 566 . 18 75 1586 . 33 391 . . 303 Explosive 8982 | . 428 1368 297 . . . . . . . . . 74 264 1653 . 4120 56 . . 203 . . 519 Electromagnetic 2721 | . . . 329 95 . . . . . . . . . . . . 771 244 1 20 . 159 . 1102 Impact . | . . . . . . . . . . . . . . . . . . . . . . . . . Slashing 2103 | . . . . . . . . . . . . . . . . . . . . . . . . 2103 Piercing 1505 | . . . . . . . . . . . . . . . . . . . . . . 123 . 1382 Highest Corruption 34 | . . . . 1 1 1 . . . . . . . . . . 14 8 22 34 . . . 22 Average Corruption 11 | . . . . 1 1 1 . . . . . . . . . . 4 4 16 26 . . . 11 Corruption Purged . | . . . . . . . . . . . . . . . . . . . . . . . . . Effects 220 | . . . . . 1 1 . . . . . . . . . . 7 23 6 123 . . . 59 Message Errors 25 | . . . . . . 1 . . . . . . . . . . 4 3 1 4 . . . 12 Matter Fused 22 | . . . . . . . . . . . . . . . . . . 5 . 9 . . . 8 Heat Flow Errors 11 | . . . . . . . . . . . . . . . . . . 1 2 6 . . . 2 Energy Discharges 10 | . . . . . 1 . . . . . . . . . . . . . . 5 . . . 4 Data Loss (minor) 13 | . . . . . . . . . . . . . . . . . . 1 . 7 . . . 5 Data Loss (major) 3 | . . . . . . . . . . . . . . . . . . . . 3 . . . . Misfires 5 | . . . . . . . . . . . . . . . . . . 1 1 2 . . . 1 Alerts 1 | . . . . . . . . . . . . . . . . . . . . . . . . 1 Misdirections 23 | . . . . . . . . . . . . . . . . . 1 . 2 14 . . . 6 Targeting Errors 95 | . . . . . . . . . . . . . . . . . 2 12 . 62 . . . 19 Weapon Failures 12 | . . . . . . . . . . . . . . . . . . . . 11 . . . 1 Overload Shots 1 | . . . . . . . . . . . . . . . . . 1 . . . . . . . Overflow Damage 1041 | . 16 37 5 . . . . . . . . . 20 . 14 . 238 19 . 11 17 . . 664 Projectiles 140 | . . . . . . . . . . . . . 5 . . . . 16 . 11 17 . . 91 Explosions 328 | . 16 37 5 . . . . . . . . . 15 . 14 . 238 3 . . . . . . Melee 573 | . . . . . . . . . . . . . . . . . . . . . . . . 573 Knockbacks 4 | . . . . . . . . . . . . 1 . 1 . . 2 . . . . . . . Impact 2 | . . . . . . . . . . . . . . . . . 2 . . . . . . . Kinetic 2 | . . . . . . . . . . . . 1 . 1 . . . . . . . . . . Secondary . | . . . . . . . . . . . . . . . . . . . . . . . . . Self-Inflicted Damage 507 | . 40 35 76 . . . . . . . . . . . . . 221 74 17 44 . . . . Shots 16 | . 1 3 2 . . . . . . . . . . . . . 5 1 2 2 . . . . Rammed 13 | . . . . . . . . . . . . . 1 . . . 4 3 . 5 . . . . Targets Rammed 14 | . . . . . . . . . . . . . 1 . . . 4 3 . 6 . . . . Kicked 1 | . . . . . . . . . . . . . . . . . . . . 1 . . . . Crushed . | . . . . . . . . . . . . . . . . . . . . . . . . . Highest Temperature 449 | . 198 165 108 167 . 199 175 238 320 138 . 296 370 278 . 41 166 328 159 449 407 198 9 199 Average Temperature 98 | . 68 54 30 70 . 119 83 118 142 51 . 115 93 93 . 21 63 92 67 139 112 84 4 92 Received Heat Transfer 1784 | . 18 96 123 20 . 36 . 42 70 . . 276 12 53 8 . 195 511 . 117 4 . 16 187 Effects 13 | . . . . . . . . . 1 . . . . . . . . 1 . 10 1 . . . Energy Bleed 3 | . . . . . . . . . . . . . . . . . . 1 . 1 1 . . . Interference 7 | . . . . . . . . . 1 . . . . . . . . . . 6 . . . . Matter Decay 2 | . . . . . . . . . . . . . . . . . . . . 2 . . . . Damage (minor) 1 | . . . . . . . . . . . . . . . . . . . . 1 . . . . Siege Activations 6 | . . . . . . . . . . . . . . . . . . 4 . . . . . 2 Total Turns 85 | . . . . . . . . . . . . . . . . . . 83 . . . . . 2 Longest Duration 53 | . . . . . . . . . . . . . . . . . . 53 . . . . . 1 Robots Corrupted 7 | . . . . . . . . . . . . . . . . . . . . . . 1 . 6 Combat Hostiles 5 | . . . . . . . . . . . . . . . . . . . . . . . . 5 Parts Fried 11 | . . . 1 . . . . . . . . . . . . . 2 1 . . . 1 . 6 Impact Corruptions . | . . . . . . . . . . . . . . . . . . . . . . . . . Robots Melted 1 | . . . . . . . . 1 . . . . . . . . . . . . . . . . Combat Hostiles 1 | . . . . . . . . 1 . . . . . . . . . . . . . . . . Parts Melted 21 | . . . . . . . . 6 . . . . 2 4 . . . 4 . . . . . 5 Heat Transferred 8175 | . 571 222 100 . . 185 296 1369 444 . . 200 740 844 . 37 74 2229 . 50 592 . . 222 Parts Sabotaged 2 | . . . . . . . . . . . . . . . . . . 2 . . . . . . Parts Stolen . | . . . . . . . . . . . . . . . . . . . . . . . . . Parts Stripped . | . . . . . . . . . . . . . . . . . . . . . . . . . Power Chain Reactions 3 | . . . 1 . . . . . . . . . . . . . 1 1 . . . . . . Missiles Intercepted . | . . . . . . . . . . . . . . . . . . . . . . . . . Alert | -11 -10 -10 -9 -9 -9 -8 -8 -7 -7 -7 -7 -6 -6 -6 -6 -6 -6 -5 -5 -5 -4 -3 -2 -1 ------- Run | Scr Mat Min Mat Min Exi Min Mat Fac Low Low Dat Pro Fac Ext Cet Arc Hub Fac Was Fac Fac Res Res Acc Peak Influence 1772 | . 282 374 399 137 . 70 73 227 . . . . 413 412 700 506 1772 1103 381 537 300 83 33 369 Average Influence 332 | . 109 257 252 101 . 13 48 100 . . . . 88 234 409 426 1227 918 370 395 180 43 18 159 Maximum Alert Level 5 | . 1 1 1 . . . . 1 . . . . 2 2 3 2 5 4 1 2 1 . . 1 Low Security (%) 49 | . . . . . . . . . . . . . . . . . . . . . . . . . Level 1 26 | . . . . . . . . . . . . . . . . . . . . . . . . . Level 2 6 | . . . . . . . . . . . . . . . . . . . . . . . . . Level 3 11 | . . . . . . . . . . . . . . . . . . . . . . . . . Level 4 5 | . . . . . . . . . . . . . . . . . . . . . . . . . Level 5 . | . . . . . . . . . . . . . . . . . . . . . . . . . High Security . | . . . . . . . . . . . . . . . . . . . . . . . . . Max Security . | . . . . . . . . . . . . . . . . . . . . . . . . . Squads Dispatched 57 | . 2 . 2 . . . . 2 . . . . 5 3 . . 15 7 . 4 1 7 . 9 Investigation 9 | . 1 . . . . . . 1 . . . . 3 1 . . . . . . . 2 . 1 Extermination 10 | . . . . . . . . 1 . . . . 1 . . . . 1 . 2 1 . . 4 Reinforcement 23 | . 1 . 2 . . . . . . . . . 1 2 . . 9 1 . 1 . 5 . 1 Assault 10 | . . . . . . . . . . . . . . . . . 4 5 . 1 . . . . Garrison 5 | . . . . . . . . . . . . . . . . . 2 . . . . . . 3 Intercept . | . . . . . . . . . . . . . . . . . . . . . . . . . Construction Impeded 3 | . . . . . . . . . . . . . . 1 . . 2 . . . . . . . Haulers Reinforced 2 | . . . . . . . . . . . . . . . . . 1 . . . . 1 . . Stealth | -11 -10 -10 -9 -9 -9 -8 -8 -7 -7 -7 -7 -6 -6 -6 -6 -6 -6 -5 -5 -5 -4 -3 -2 -1 --------- Run | Scr Mat Min Mat Min Exi Min Mat Fac Low Low Dat Pro Fac Ext Cet Arc Hub Fac Was Fac Fac Res Res Acc Distress Signals 25 | . . . 2 . . . . . . . . . . 3 2 . 5 3 . 2 1 1 . 6 Communications Jammed 141 | . . . . . . . . . . . . . . . . . . . . . . . . 141 Distress Signals 116 | . . . . . . . . . . . . . . . . . . . . . . . . 116 Times Spotted 409 | . 16 17 16 11 . 3 2 12 7 . . 12 4 21 16 5 83 43 5 34 10 2 2 88 Peak Tracking Total 22 | . 4 3 3 4 . 3 1 4 4 . . 8 1 4 5 2 22 7 5 5 4 1 2 9 Tactical Retreats 47 | . 2 . 1 . . . . 1 . . . 1 . 3 . . 6 4 . 7 2 . 1 19 Traps | -11 -10 -10 -9 -9 -9 -8 -8 -7 -7 -7 -7 -6 -6 -6 -6 -6 -6 -5 -5 -5 -4 -3 -2 -1 ------- Run | Scr Mat Min Mat Min Exi Min Mat Fac Low Low Dat Pro Fac Ext Cet Arc Hub Fac Was Fac Fac Res Res Acc Traps Triggered 15 | . 1 . 1 . . . 1 . . . . . . 2 . . 3 3 . 1 . 1 . 2 Indirectly . | . . . . . . . . . . . . . . . . . . . . . . . . . Trap Hack Attempts . | . . . . . . . . . . . . . . . . . . . . . . . . . Triggered . | . . . . . . . . . . . . . . . . . . . . . . . . . Disarmed . | . . . . . . . . . . . . . . . . . . . . . . . . . Reprogrammed . | . . . . . . . . . . . . . . . . . . . . . . . . . Reused . | . . . . . . . . . . . . . . . . . . . . . . . . . Traps Extracted . | . . . . . . . . . . . . . . . . . . . . . . . . . Installed . | . . . . . . . . . . . . . . . . . . . . . . . . . Triggered . | . . . . . . . . . . . . . . . . . . . . . . . . . Machines | -11 -10 -10 -9 -9 -9 -8 -8 -7 -7 -7 -7 -6 -6 -6 -6 -6 -6 -5 -5 -5 -4 -3 -2 -1 ---------- Run | Scr Mat Min Mat Min Exi Min Mat Fac Low Low Dat Pro Fac Ext Cet Arc Hub Fac Was Fac Fac Res Res Acc Machines Disabled 44 | . 2 3 . . . . . . . 1 . . 1 5 . 2 17 7 . 3 3 . . . Max in Single Turn 7 | . 2 1 . . . . . . . 1 . . 1 2 . 1 7 1 . 3 1 . . . Garrison Access 5 | . . . . . . . . . . . . . . . . . 1 . . . 1 1 . 2 Network Hub 1 | . . . . . . . . . . . . . . . . . 1 . . . . . . . Machines Sabotaged . | . . . . . . . . . . . . . . . . . . . . . . . . . Garrisons Compromised . | . . . . . . . . . . . . . . . . . . . . . . . . . Overloaded Fab Kills . | . . . . . . . . . . . . . . . . . . . . . . . . . Fab Network Shutdowns 1 | . . . . . . . . . . . . . 1 . . . . . . . . . . . Hacking | -11 -10 -10 -9 -9 -9 -8 -8 -7 -7 -7 -7 -6 -6 -6 -6 -6 -6 -5 -5 -5 -4 -3 -2 -1 --------- Run | Scr Mat Min Mat Min Exi Min Mat Fac Low Low Dat Pro Fac Ext Cet Arc Hub Fac Was Fac Fac Res Res Acc Machines Accessed 63 | . 2 . . . 1 1 2 3 2 1 4 . 9 9 2 . 7 3 . 4 3 3 1 6 Terminals 41 | . 2 . . . . 1 2 1 . . . . 5 9 2 . 6 3 . 2 2 2 1 3 Fabricators 7 | . . . . . . . . 1 . . . . 4 . . . . . . 1 . . . 1 Repair Stations 1 | . . . . . . . . . . . . . . . . . . . . 1 . . . . Recycling Units 1 | . . . . . . . . 1 . . . . . . . . . . . . . . . . Scanalyzers . | . . . . . . . . . . . . . . . . . . . . . . . . . Garrison Access 5 | . . . . . . . . . . . . . . . . . 1 . . . 1 1 . 2 Total Hacks 191 | . 3 . . . 1 3 3 9 6 1 29 . 32 24 7 . 18 6 . 7 8 9 7 18 Successful 115 | . 3 . . . 1 3 2 4 6 1 29 . 18 11 2 . 8 3 . 1 3 6 6 8 Failed 74 | . . . . . . . 1 5 . . . . 13 12 5 . 10 3 . 6 5 3 1 10 Catastrophic 24 | . . . . . . . . 3 . . . . 2 2 . . 4 2 . 3 1 2 1 4 Database Lockouts 2 | . . . . . . . . . . . . . 1 1 . . . . . . . . . . Manual 75 | . 1 . . . 1 . 2 5 . . . . 17 14 6 . 6 4 . . 3 7 4 5 Terminals 121 | . 3 . . . . 3 3 4 . . . . 20 24 7 . 16 6 . 2 5 8 7 13 Fabricators 18 | . . . . . . . . 1 . . . . 12 . . . . . . 2 . . . 3 Repair Stations 3 | . . . . . . . . . . . . . . . . . . . . 3 . . . . Recycling Units 4 | . . . . . . . . 4 . . . . . . . . . . . . . . . . Scanalyzers . | . . . . . . . . . . . . . . . . . . . . . . . . . Garrison Access 8 | . . . . . . . . . . . . . . . . . 2 . . . 3 1 . 2 Terminal Hacks 79 | . 2 . . . 1 3 1 . 6 1 29 . 9 9 1 . 6 1 . . 1 4 4 1 Record 17 | . . . . . . 1 . . 5 . 11 . . . . . . . . . . . . . Part Schematic 11 | . . . . . . . . . . . 9 . 1 . . . . 1 . . . . . . Robot Schematic 6 | . . . . . . . . . . . 6 . . . . . . . . . . . . . Robot Analysis 2 | . . . . . . . . . . . . . 1 1 . . . . . . . . . . Prototype ID Bank 8 | . 1 . . . . . . . . . 3 . 1 1 . . 1 . . . . . 1 . Open Door 3 | . . . . . . . . . 1 1 . . . . 1 . . . . . . . . . Level Access Points 2 | . . . . . . . . . . . . . . . . . . . . . . 1 1 . Branch Access Points 2 | . 1 . . . . . . . . . . . . . . . . . . . . . . 1 Emergency Access Points 1 | . . . . . . . . . . . . . 1 . . . . . . . . . . . Terminal Index 1 | . . . . . . . . . . . . . . 1 . . . . . . . . . . Fabricator Index 1 | . . . . . . . . . . . . . 1 . . . . . . . . . . . Alert Level 3 | . . . . . . . . . . . . . 1 1 . . . . . . . 1 . . Unreport Threat 11 | . . . . . . . . . . . . . 2 1 . . 4 . . . 1 2 1 . Dispatch Records 1 | . . . . . . 1 . . . . . . . . . . . . . . . . . . Recall Investigation 2 | . . . . . . . . . . . . . 1 1 . . . . . . . . . . Recall Reinforcements 1 | . . . . . . . . . . . . . . 1 . . . . . . . . . . Hauler Manifests 1 | . . . . . . . . . . . . . . . . . . . . . . . 1 . Zone Layout 5 | . . . . . . 1 1 . . . . . . 2 . . 1 . . . . . . . EX-Prototype ID Bank 1 | . . . . . 1 . . . . . . . . . . . . . . . . . . . Fabricator Hacks 9 | . . . . . . . . 1 . . . . 6 . . . . . . . . . . 2 Network Status 1 | . . . . . . . . 1 . . . . . . . . . . . . . . . . Load Schematic 4 | . . . . . . . . . . . . . 3 . . . . . . . . . . 1 Build 4 | . . . . . . . . . . . . . 3 . . . . . . . . . . 1 Repair Station Hacks 1 | . . . . . . . . . . . . . . . . . . . . 1 . . . . Scan Component 1 | . . . . . . . . . . . . . . . . . . . . 1 . . . . Recycling Unit Hacks 2 | . . . . . . . . 2 . . . . . . . . . . . . . . . . Process 1 | . . . . . . . . 1 . . . . . . . . . . . . . . . . Report Inventory 1 | . . . . . . . . 1 . . . . . . . . . . . . . . . . Scanalyzer . | . . . . . . . . . . . . . . . . . . . . . . . . . Garrison Access Hacks 4 | . . . . . . . . . . . . . . . . . . . . . 1 1 . 2 Seal Access 4 | . . . . . . . . . . . . . . . . . . . . . 1 1 . 2 Unauthorized Hacks 51 | . 2 . . . . . 2 2 . . . . 7 7 2 . 7 6 . . 2 2 4 8 Terminals 20 | . 1 . . . . . 1 1 . . . . 3 2 1 . 2 2 . . 1 1 2 3 Assimilate 2 | . . . . . . . . . . . . . . . . . . 1 . . . . . 1 Botnet 17 | . 1 . . . . . 1 1 . . . . 3 2 1 . 2 1 . . 1 1 1 2 Operators 1 | . . . . . . . . . . . . . . . . . . . . . . . 1 . Fabricators . | . . . . . . . . . . . . . . . . . . . . . . . . . Repair Stations . | . . . . . . . . . . . . . . . . . . . . . . . . . Recycling Units . | . . . . . . . . . . . . . . . . . . . . . . . . . Scanalyzers . | . . . . . . . . . . . . . . . . . . . . . . . . . Garrison Access . | . . . . . . . . . . . . . . . . . . . . . . . . . Data Cores Recovered . | . . . . . . . . . . . . . . . . . . . . . . . . . Used . | . . . . . . . . . . . . . . . . . . . . . . . . . Hacking Detections 46 | . 1 . . . . . 2 2 . . . . 8 9 2 . 7 2 . 4 2 2 1 4 Full Trace Events 3 | . . . . . . . . 1 . . . . 1 . . . . . . . . . . 1 Feedback Events . | . . . . . . . . . . . . . . . . . . . . . . . . . Feedback Blocked . | . . . . . . . . . . . . . . . . . . . . . . . . . Robot Schematics Acquired 6 | . . . . . . . . . . . 6 . . . . . . . . . . . . . Robots Built . | . . . . . . . . . . . . . . . . . . . . . . . . . Matter . | . . . . . . . . . . . . . . . . . . . . . . . . . Time . | . . . . . . . . . . . . . . . . . . . . . . . . . Total Robot Build Rating . | . . . . . . . . . . . . . . . . . . . . . . . . . Part Schematics Acquired 11 | . . . . . . . . . . . 9 . 1 . . . . 1 . . . . . . Parts Built 6 | . . . . . . . . . . . . . 4 . . . . . . . . . . 2 Matter 862 | . . . . . . . . . . . . . 716 . . . . . . . . . . 146 Time 364 | . . . . . . . . . . . . . 328 . . . . . . . . . . 36 Total Part Build Rating 22 | . . . . . . . . . . . . . 16 . . . . . . . . . . 6 Parts Repaired . | . . . . . . . . . . . . . . . . . . . . . . . . . Time . | . . . . . . . . . . . . . . . . . . . . . . . . . Parts Recycled . | . . . . . . . . . . . . . . . . . . . . . . . . . Recycled Matter 288 | . . . . . . . . 288 . . . . . . . . . . . . . . . . Retrieved Matter . | . . . . . . . . . . . . . . . . . . . . . . . . . Retrieved Components . | . . . . . . . . . . . . . . . . . . . . . . . . . Parts Scanalyzed . | . . . . . . . . . . . . . . . . . . . . . . . . . Part Schematics Acquired . | . . . . . . . . . . . . . . . . . . . . . . . . . Parts Damaged . | . . . . . . . . . . . . . . . . . . . . . . . . . Bothacking | -11 -10 -10 -9 -9 -9 -8 -8 -7 -7 -7 -7 -6 -6 -6 -6 -6 -6 -5 -5 -5 -4 -3 -2 -1 ------------ Run | Scr Mat Min Mat Min Exi Min Mat Fac Low Low Dat Pro Fac Ext Cet Arc Hub Fac Was Fac Fac Res Res Acc Used RIF Installer . | . . . . . . . . . . . . . . . . . . . . . . . . . Robots Hacked . | . . . . . . . . . . . . . . . . . . . . . . . . . Non-combat . | . . . . . . . . . . . . . . . . . . . . . . . . . Combat . | . . . . . . . . . . . . . . . . . . . . . . . . . Robot Hacks Applied . | . . . . . . . . . . . . . . . . . . . . . . . . . Relay Couplers Released 2 | . . . . . . . . . . . . . . . . . 2 . . . . . . . Machine Destruction 2 | . . . . . . . . . . . . . . . . . 2 . . . . . . . Robots Rewired 10 | . . . . . . . . . . . . . . 10 . . . . . . . . . . Allies Hacked 1 | . . . . . . . . . . . . . . 1 . . . . . . . . . . Hacks Repelled . | . . . . . . . . . . . . . . . . . . . . . . . . . Allies | -11 -10 -10 -9 -9 -9 -8 -8 -7 -7 -7 -7 -6 -6 -6 -6 -6 -6 -5 -5 -5 -4 -3 -2 -1 -------- Run | Scr Mat Min Mat Min Exi Min Mat Fac Low Low Dat Pro Fac Ext Cet Arc Hub Fac Was Fac Fac Res Res Acc Total Allies 18 | . . . . . . . . . . . . 1 . 12 5 . . . . . . . . . Largest Group 7 | . . . . . . . . . . . . 1 . 7 6 6 5 . . . . . . . Highest-Rated Group 626 | . . . . . . . . . . . . 94 . 199 626 612 456 . . . . . . . Highest-Rated Ally 156 | . . . . . . . . . . . . 94 . 156 156 156 94 . . . . . . . Total Orders 10 | . . . . . . . . . . . . . 2 . . . 4 . . . 1 . . 3 STAY 2 | . . . . . . . . . . . . . . . . . 2 . . . . . . . GOTO 1 | . . . . . . . . . . . . . . . . . 1 . . . . . . . FOLLOW 1 | . . . . . . . . . . . . . . . . . 1 . . . . . . . EXPLORE 6 | . . . . . . . . . . . . . 2 . . . . . . . 1 . . 3 Ally Attacks 236 | . . . . . . . . . . . . 17 . 60 59 29 71 . . . . . . . Total Damage 7926 | . . . . . . . . . . . . 704 . 1580 2005 1090 2547 . . . . . . . Kills 51 | . . . . . . . . . . . . 7 . 13 13 3 15 . . . . . . . Allies Corrupted 2 | . . . . . . . . . . . . . . . . . . . . . . . . 2 Allies Melted 2 | . . . . . . . . . . . . 1 . . . . 1 . . . . . . . Intel | -11 -10 -10 -9 -9 -9 -8 -8 -7 -7 -7 -7 -6 -6 -6 -6 -6 -6 -5 -5 -5 -4 -3 -2 -1 ------- Run | Scr Mat Min Mat Min Exi Min Mat Fac Low Low Dat Pro Fac Ext Cet Arc Hub Fac Was Fac Fac Res Res Acc Robot Analysis Total 2 | . . . . . . . . . . . . . 1 1 . . . . . . . . . . Derelict Logs Recovered 5 | . . 1 . 1 . . . . 2 . . 1 . . . . . . . . . . . . Drone Launches 32 | . . . . . . . . . . . . . 6 2 . . . . . . 4 . . 20 Drone Recoveries . | . . . . . . . . . . . . . . . . . . . . . . . . . Exploration | -11 -10 -10 -9 -9 -9 -8 -8 -7 -7 -7 -7 -6 -6 -6 -6 -6 -6 -5 -5 -5 -4 -3 -2 -1 ------------- Run | Scr Mat Min Mat Min Exi Min Mat Fac Low Low Dat Pro Fac Ext Cet Arc Hub Fac Was Fac Fac Res Res Acc Turns Passed 14106 | 56 372 698 455 465 201 388 208 549 512 347 92 706 1452 845 354 99 980 1194 128 837 595 636 125 1812 Spaces Moved 10739 | 46 288 522 262 350 242 359 199 427 413 291 84 406 954 474 195 46 502 587 100 469 723 837 144 1819 Core 50 | 3 . . . 2 . . . . . . . . . . . . . . . . . . . 45 Treads 253 | . . . . . . . . . . . . . . . . . . 238 . . . . . 15 Legs 1324 | . . 381 262 148 . . . . . . . 373 . . . . . 16 . 144 . . . . Wheels 5413 | 43 288 141 . 200 242 359 199 427 413 291 84 33 954 474 195 46 502 333 100 89 . . . . Hover 3391 | . . . . . . . . . . . . . . . . . . . . 236 723 837 144 1451 Flight 308 | . . . . . . . . . . . . . . . . . . . . . . . . 308 Fastest Speed 31 | 50 100 100 120 80 80 80 80 90 100 100 110 100 100 105 105 150 140 100 100 58 52 52 60 31 Average Speed 95 | 96 100 114 120 97 80 84 86 99 104 109 110 131 105 105 114 150 149 145 125 104 63 65 60 57 Slowest Speed 210 | 100 100 120 150 150 80 90 90 110 110 110 110 160 110 105 150 150 150 210 140 210 93 84 60 160 Overloaded Moves . | . . . . . . . . . . . . . . . . . . . . . . . . . Propulsion Burnouts . | . . . . . . . . . . . . . . . . . . . . . . . . . Robots Hopped 3 | . . . . . . . . . . . . . . . . . . . . . . . . 3 Cave-ins Triggered 1 | . . . . . . . . . . . . . . 1 . . . . . . . . . . Exploration Rate (%) 46 | 4 77 88 30 61 61 56 28 14 56 51 70 59 34 70 66 71 51 10 76 15 26 28 9 59 Regions Visited 24 Branch Regions 12 Pre-discovered Areas 3 | . . 1 . . . . . . . . 1 1 . . . . . . . . . . . . Known Exits Taken 7 | . 1 1 1 1 . . . . 1 . . . . . . . . . . . . 1 1 . Unknown Exits Taken 15 | 1 . . . . 1 1 1 1 . 1 1 1 1 1 1 1 1 . . 1 1 . . . Scrap Searched 9 | . . 2 . 1 . 1 . . 4 . . 1 . . . . . . . . . . . . Spaces Dug 77 | . . 17 . . . . . . . 3 . 2 11 13 . . . 2 . . 1 3 4 21 Terrain Destroyed 1105 | . 45 156 28 . . . . . . 4 . 12 42 56 148 5 414 54 . 50 41 3 4 43 Melee 24 | . . . . . . . . . . . . . . . . . . . . . . . 4 20 Projectile 148 | . . . . . . . . . . 4 . 12 25 27 . 5 35 22 . 5 7 3 . 3 AOE 933 | . 45 156 28 . . . . . . . . . 17 29 148 . 379 32 . 45 34 . . 20 Actions | -11 -10 -10 -9 -9 -9 -8 -8 -7 -7 -7 -7 -6 -6 -6 -6 -6 -6 -5 -5 -5 -4 -3 -2 -1 --------- Run | Scr Mat Min Mat Min Exi Min Mat Fac Low Low Dat Pro Fac Ext Cet Arc Hub Fac Was Fac Fac Res Res Acc Total 13414 | 54 328 587 376 413 248 426 217 511 458 313 83 541 1338 766 298 62 612 789 101 647 823 915 174 2334 Wait 1345 | 4 2 22 76 9 6 49 . 45 17 14 . 94 302 131 66 10 24 90 . 27 41 26 27 263 Move 10711 | 45 287 521 261 349 241 358 198 426 412 290 83 405 953 473 194 45 502 587 99 468 722 836 143 1813 Hop 3 | . . . . . . . . . . . . . . . . . . . . . . . . 3 Pick Up . | . . . . . . . . . . . . . . . . . . . . . . . . . Fast Attach 232 | 5 4 7 5 9 1 5 6 10 7 2 . 6 21 1 6 . 1 20 2 30 13 22 . 49 Attach . | . . . . . . . . . . . . . . . . . . . . . . . . . Detach 14 | . . 1 1 . . . . 3 1 . . . 4 . . . . . . . 2 . . 2 Swap 25 | . 2 . 4 2 . . 1 3 . . . 1 1 3 . . 2 1 . 2 . 1 . 2 Drop 138 | . 3 2 4 4 . 5 4 7 4 2 . 4 13 4 5 . 3 6 . 14 7 20 . 27 Fire 668 | . 29 34 25 40 . 9 8 17 17 5 . 31 40 42 27 7 69 66 . 100 36 9 . 57 Melee 113 | . . . . . . . . . . . . . . . . . . . . . . 1 4 108 Ram 7 | . . . . . . . . . . . . . 1 . . . 1 3 . 2 . . . . Kick 4 | . . . . . . . . . . . . . . . . . . . . 4 . . . . Crush 2 | . . . . . . . . . . . . . . . . . 2 . . . . . . . Escape Stasis 40 | . . . . . . . . . . . . . . 16 . . 8 16 . . . . . . Rewire 96 | . 1 . . . . . . . . . . . . 95 . . . . . . . . . . Trap . | . . . . . . . . . . . . . . . . . . . . . . . . . Miscellaneous 16 | . . . . . . . . . . . . . 3 1 . . . . . . 2 . . 10 Route ------- -11/Scrapyard -10/Materials (discovered 3 exits: *Mat x2 / *Min) -10/Mines -9/Materials (discovered 3 exits: *Min / *Sto x2) -9/Mines (discovered 3 exits: *Mat x2 / *Exi) -9/Exiles -8/Mines -8/Materials -7/Factory -7/Lower Caves -7/Lower Caves (discovered 2 exits: Fac / *Dat) -7/Data Miner -6/Proximity Caves -6/Factory (discovered 3 exits: *Fac / [*Low] / *Ext) -6/Extension (discovered 2 exits: *Fac / *Cet) -6/Cetus (discovered 2 exits: *Fac / [*Arc]) -6/Archives (discovered 2 exits: *Hub x2) -6/Hub_04(d) (discovered 2 exits: *Fac x2) -5/Factory -5/Waste -5/Factory -4/Factory (discovered 2 exits: *Res / [*Upp]) -3/Research (discovered 3 exits: *Res x3) -2/Research (discovered 3 exits: *Acc x3) -1/Access (discovered 1 exit: Com) History --------- Turn | Location | Event 14 | -11/Scrapyard | Discovered new exit (range 16) 57 | -11/Scrapyard | Entered Materials 174 | -10/Materials | Discovered new exit (range 3) 176 | -10/Materials | Identified exit to Materials 270 | -10/Materials | Discovered exit to Materials (range 14) 318 | -10/Materials | Build established: Mutant 391 | -10/Materials | Identified exit to Mines 429 | -10/Materials | Entered Mines 430 | -10/Mines | Learned location of Storage (-9) 448 | -10/Mines | Found a damaged Exp. Sensor Array with a note attached 452 | -10/Mines | Found Prototype Device 452 | -10/Mines | Identified Exp. Sensor Array 472 | -10/Mines | Learned Materials terminal intel 495 | -10/Mines | Met a Derelict bent on vengeance 604 | -10/Mines | Received a Rocket Launcher from a helpful Derelict 901 | -10/Mines | Build established: Scavenger-Mutant 1121 | -10/Mines | Discovered exit to Materials (range 5) 1127 | -10/Mines | Entered Materials 1127 | -9/Materials | Evolved 2 slots: Utility x1, Weapon x1 1127 | -9/Materials | Discovered new exit (range 9) 1128 | -9/Materials | Loaded intel: 12 terminal locations 1143 | -9/Materials | Identified exit to Storage 1522 | -9/Materials | Discovered exit to Storage (range 10) 1523 | -9/Materials | Discovered new exit (range 9) 1539 | -9/Materials | Identified exit to Mines 1578 | -9/Materials | Build established: Mutant 1582 | -9/Materials | Entered Mines 1598 | -9/Mines | Assembled infested the area 1626 | -9/Mines | Lost 3 parts (1p2w) 1705 | -9/Mines | Lost 3 parts (1n2u) 1871 | -9/Mines | Discovered new exit (range 11) 1881 | -9/Mines | Identified exit to Exiles 1882 | -9/Mines | Discovered new exit (range 8) 1970 | -9/Mines | Build established: Scavenger-Gunner 2044 | -9/Mines | Deemed a non-threat by the Exiles lab entrance 2047 | -9/Mines | Entered Exiles 2069 | -9/Exiles | Met 8R-AWN 2079 | -9/Exiles | Met EX-HEX 2103 | -9/Exiles | Met EX-BIN 2117 | -9/Exiles | Aligned with FarCom system 2118 | -9/Exiles | Given EX-Vault access code 2140 | -9/Exiles | Opened EX-Vault 2150 | -9/Exiles | Found Superbattery 2189 | -9/Exiles | Warned to stay clear of 0b10 Research branches 2210 | -9/Exiles | Met EX-DEC 2240 | -9/Exiles | Discovered new exit (range 10) 2248 | -9/Exiles | Left Exiles lab with Superbattery 2248 | -9/Exiles | Entered Mines 2630 | -8/Mines | Discovered new exit (range 6) 2636 | -8/Mines | Entered Materials 2636 | -8/Materials | Evolved 2 slots: Power x1, Propulsion x1 2826 | -8/Materials | Discovered new exit (range 15) 2844 | -8/Materials | Entered Factory 2844 | -7/Factory | Evolved 2 slots: Utility x2 3199 | -7/Factory | Build established: Tank 3277 | -7/Factory | Discovered new exit (range 15) 3393 | -7/Factory | Entered Lower Caves 3431 | -7/Lower Caves | Identified exit to Lower Caves 3577 | -7/Lower Caves | Learned Extension trap positions 3577 | -7/Lower Caves | Learned Armory emergency access door positions 3876 | -7/Lower Caves | Encountered a Warlord checkpoint 3899 | -7/Lower Caves | Learned 8 Factory zone layouts 3905 | -7/Lower Caves | Entered another Lower Caves area 3957 | -7/Lower Caves | Discovered new exit (range 15) 4142 | -7/Lower Caves | Encountered a Warlord checkpoint 4225 | -7/Lower Caves | Discovered new exit (range 10) 4252 | -7/Lower Caves | Entered Data Miner 4252 | -7/Data Miner | Discovered new exit (range 6) 4259 | -7/Data Miner | Build established: Derelict-Mutant 4273 | -7/Data Miner | Met Data Miner 4299 | -7/Data Miner | Learned location of Section 7 (-2) 4299 | -7/Data Miner | Acquired the access code to Warlord's prototype stash 4317 | -7/Data Miner | Received God Mode back door access code from Data Miner 4344 | -7/Data Miner | Entered Proximity Caves 4430 | -6/Proximity Caves | Escorted by Enhanced Grunt 4452 | -6/Proximity Caves | Attracted the attention of an 0b10 checkpoint 4497 | -6/Proximity Caves | Lost 4 parts (1p1n1u1w) 4510 | -6/Proximity Caves | Learned location of Zion (-6) 4717 | -6/Proximity Caves | Lost 3 parts (1p1u1w) 4977 | -6/Proximity Caves | Build established: Scavenger-Mutant 5025 | -6/Proximity Caves | Discovered new exit (range 9) 5050 | -6/Proximity Caves | Entered Factory 5050 | -6/Factory | Evolved 2 slots: Utility x1, Weapon x1 5191 | -6/Factory | Discovered new exit (range 16) 5528 | -6/Factory | Discovered new exit (range 25) 5687 | -6/Factory | Discovered new exit (range 20) 5701 | -6/Factory | Incoming investigation squad redirected 5861 | -6/Factory | Central database locked down 6022 | -6/Factory | Fabricated Imp. Utility Shielding (x2) 6081 | -6/Factory | Build established: Hacker-Mutant 6127 | -6/Factory | Fabricated Lgt. Regenerative Plating (x1) 6257 | -6/Factory | Local fabrication network quarantined 6280 | -6/Factory | Fabricated Lgt. Regenerative Plating (x1) 6502 | -6/Factory | Entered Extension 6503 | -6/Extension | Loaded intel: 16 trap records 6507 | -6/Extension | Disrupted transfer network 6709 | -6/Extension | P-60 Hacker assimilated allied 29-TB7(g) 7068 | -6/Extension | Crushed by falling debris 7113 | -6/Extension | Rescued A7 7154 | -6/Extension | Central database locked down 7154 | -6/Extension | Rescued a captive Derelict 7324 | -6/Extension | Discovered new exit (range 15) 7324 | -6/Extension | Discovered new exit (range 11) 7347 | -6/Extension | Entered Cetus 7347 | -6/Cetus | Accompanied by 1 ally 7352 | -6/Cetus | Acquired a Cetus Manufacturing Module code from A7 7362 | -6/Cetus | Spotted Cetus Guard 7362 | -6/Cetus | Spotted Cetus Guard 7371 | -6/Cetus | Allies destroyed Cetus Guard 7371 | -6/Cetus | Spotted Cetus Guard 7379 | -6/Cetus | Allies destroyed Cetus Guard 7381 | -6/Cetus | Spotted Cetus Guard 7382 | -6/Cetus | Allies destroyed Cetus Guard 7394 | -6/Cetus | Allies destroyed Cetus Guard 7433 | -6/Cetus | Build established: Mutant 7434 | -6/Cetus | Started Cetus Manufacturing Module 7445 | -6/Cetus | Escorted A7 to Cetus Mainframe 7458 | -6/Cetus | Discovered new exit (range 16) 7459 | -6/Cetus | Manufactured an Enhanced Grunt 7484 | -6/Cetus | Manufactured an Enhanced Grunt 7509 | -6/Cetus | Manufactured an Enhanced Grunt 7534 | -6/Cetus | Manufactured an Enhanced Grunt 7559 | -6/Cetus | Manufactured an Enhanced Grunt 7595 | -6/Cetus | Spotted Cetus Guard 7595 | -6/Cetus | Spotted Cetus Guard 7597 | -6/Cetus | Spotted Cetus Guard 7598 | -6/Cetus | Spotted Cetus Guard 7604 | -6/Cetus | Allies destroyed Cetus Guard 7609 | -6/Cetus | Allies destroyed Cetus Guard 7611 | -6/Cetus | Discovered new exit (range 16) 7614 | -6/Cetus | Allies destroyed Cetus Guard 7615 | -6/Cetus | Allies destroyed Cetus Guard 7626 | -6/Cetus | Met Revision 17 7701 | -6/Cetus | Entered Archives 7701 | -6/Archives | Accompanied by 6 allies 7706 | -6/Archives | Received a hacking code to weaken MAIN.C 7762 | -6/Archives | Discovered new exit (range 16) 7777 | -6/Archives | Discovered new exit (range 14) 7800 | -6/Archives | Entered Hub_04(d) 7800 | -6/Hub_04(d) | Accompanied by 5 allies 7854 | -6/Hub_04(d) | Garrison activated, responded to threat 8147 | -6/Hub_04(d) | Disrupted transfer network 8150 | -6/Hub_04(d) | First assault squad dispatched 8158 | -6/Hub_04(d) | Build established: Scavenger-Mutant 8342 | -6/Hub_04(d) | Discovered new exit (range 9) 8524 | -6/Hub_04(d) | Incoming assault squad redirected 8618 | -6/Hub_04(d) | Destroyed 7 combat bots 8732 | -6/Hub_04(d) | Discovered new exit (range 9) 8765 | -6/Hub_04(d) | Network Hub disabled 8765 | -6/Hub_04(d) | Spotted Lightning 8765 | -6/Hub_04(d) | Spotted Lightning 8765 | -6/Hub_04(d) | Spotted Lightning 8765 | -6/Hub_04(d) | Spotted Lightning 8765 | -6/Hub_04(d) | Spotted Lightning 8765 | -6/Hub_04(d) | Spotted Lightning 8765 | -6/Hub_04(d) | Spotted Lightning 8765 | -6/Hub_04(d) | Spotted Lightning 8765 | -6/Hub_04(d) | Spotted Lightning 8768 | -6/Hub_04(d) | Spotted Lightning 8775 | -6/Hub_04(d) | Spotted Lightning 8777 | -6/Hub_04(d) | Spotted Lightning 8778 | -6/Hub_04(d) | System corruption reached 10% 8780 | -6/Hub_04(d) | Entered Factory 8780 | -5/Factory | Evolved 2 slots: Propulsion x1, Utility x1 8809 | -5/Factory | Lost 3 parts (1u2w) 9080 | -5/Factory | First assault squad dispatched 9210 | -5/Factory | Incoming assault squad redirected 9263 | -5/Factory | Destroyed 7 combat bots 9410 | -5/Factory | Incoming assault squad redirected 9685 | -5/Factory | Build established: Mutant 9888 | -5/Factory | Incoming assault squad redirected 9959 | -5/Factory | Lost 8 parts (1p1n2u4w) 9974 | -5/Factory | Sucked down chute 9974 | -5/Factory | Entered Waste 9989 | -5/Waste | EMP discharged 9989 | -5/Waste | System corruption reached 10% 9989 | -5/Waste | Spotted C-40 Crusher 9994 | -5/Waste | Found Gamma Bomb Array 9998 | -5/Waste | Spotted C-40 Crusher 10006 | -5/Waste | Spotted C-40 Crusher 10014 | -5/Waste | Spotted C-40 Crusher 10020 | -5/Waste | Crushed by Compactor (1 part destroyed, 1 dropped) 10053 | -5/Waste | Spotted C-40 Crusher 10088 | -5/Waste | Discovered new exit (range 10) 10089 | -5/Waste | EMP discharged 10102 | -5/Waste | Entered Factory 10681 | -5/Factory | System corruption reached 30% 10702 | -5/Factory | First assault squad dispatched 10790 | -5/Factory | Incoming assault squad redirected 10851 | -5/Factory | Lost 5 parts (1u4w) 10891 | -5/Factory | Discovered new exit (range 10) 10939 | -5/Factory | Entered another Factory area 10939 | -4/Factory | Evolved 2 slots: Propulsion x1, Utility x1 11091 | -4/Factory | Discovered new exit (range 16) 11443 | -4/Factory | Discovered new exit (range 19) 11534 | -4/Factory | Entered Research 11534 | -3/Research | Evolved 2 slots: Utility x2 11734 | -3/Research | Revision forces began assault on 0b10 11765 | -3/Research | Found Prototype Processor 11765 | -3/Research | Identified Exp. Signal Interpreter 11850 | -3/Research | Found Fusion Bomb Launcher 11869 | -3/Research | Met up with Revision 17++ 12015 | -3/Research | Found Prototype Slashing Weapon 12015 | -3/Research | Identified Vibroblade 12105 | -3/Research | Identified exit to Research 12155 | -3/Research | Found Enh. Force Lance 12170 | -3/Research | Entered another Research area 12170 | -2/Research | Evolved 2 slots: Utility x2 12174 | -2/Research | Identified exit to Access 12295 | -2/Research | Entered Access 12295 | -1/Access | Evolved 2 slots: Power x1, Utility x1 12309 | -1/Access | Build established: Hacker-Mutant 12431 | -1/Access | Fabricated Imp. Utility Shielding (x2) 12615 | -1/Access | Spotted B-99 Colossus 13186 | -1/Access | Identified exit to Command 13367 | -1/Access | Garrison activated, responded to threat 13398 | -1/Access | Lost 6 parts (1p3u2w) 13425 | -1/Access | System corruption reached 10% 13572 | -1/Access | Lost 18 parts (3p4n6u5w) 13698 | -1/Access | Found Prototype Slashing Weapon 13698 | -1/Access | Identified Nanosword 13949 | -1/Access | Core integrity fell below 50% 14006 | -1/Access | Found Antimissile System 14081 | -1/Access | Core integrity fell below 20% 14107 | -1/Access | Lost 10 parts (2p5n3u) 14107 | -1/Access | Destroyed by S-43 Plague with Heavy Machine Gun Last Messages --------------- 14070_ Slug penetrates Wall. 14070_ Energy Well destroyed. 14072_ Mic. Fission Core destroyed. 14074_ Slug penetrates Wall. 14074_ Cmb. Antigrav System destroyed. 14074_ System corrupted: Nanosword targeting data glitched. 14076_ Cmb. Antigrav System destroyed. 14077_ Dropped Antimissile System. 14077_ Dropped Imp. Utility Shielding. 14078_ Dropped Adv. Thermal Shield. 14079_ Slug penetrates Wall. 14079_ Dropped Imp. Utility Shielding. 14079_ Imp. Utility Shielding crushed and broken. 14081_ System corrupted: Matter fused (-6). 14089_ System corrupted: Nanosword targeting data glitched. 14096_ U-05 Engineer builds a Wall. 14096_ Penetrated by Slug. 14096_ Door malfunctions. 14096_ Penetrated by Slug. 14099_ U-05 Engineer repairs door. Map ----- +----------------------------------------------------+ | ??# # """"" # ?################## | | ### + ] """"""""# # | | ## # """"""""# # | | ## # """"" # / ! | | ## # [ # # | | ## # #?????## #####+####### | | ## # """"T"""" #??????# # #?### | | ## # """"""""""" #??????# # #???# | | ## ###############+#??????# # #???# | | ## #?????????????# #??????# #% #???# #### | | ## #?????????????# #??????# # #???# #??? | | ## #?????????????# #??????# # #???# #??? | | ## ##????????????# ########s# ""T"" #???#%#??? | | ## +????h???????# s # """"" #####/#### | | ## ##????h???????# s ########### | | ## #?????????????# ] #?????????# | | ## #?????????????# % #?????????# " | | ## #?????????????# #?????????# """" | | ### ######+#??????# #?????????# """"" | | #??????# #?????????# """"" | | #??????# #?????????# """" | | ####+####?###### #?????????# " | | #?????????+ /##????????# | | #?????????# #????????# | | #?????????+ #????????# | | #?????????###########@ #????????# | | #???????????????????# #????????#########+ | | #???????????????????# #?????????# | | #???????????????????# #?????????# | | #???????????????????# #?????????# | | #???????????????????# #?????????# | | ## #???????????????????# #?????????# #### | | ?# +???????????????????# ######?????????# #??? | | ?# #???????????????????# #??????????????# #??? | | ?# #???????????????????# #??????????????# #??? | | ?# #???????????????????# #??????????????# #?? | | ?# #???????????????????# ??????????????# # " | | ?? #???????????????????###??????????????# + | | ?? #????????????????????????????????????# # | | ?? #????????????????????????????????????# #?? | | ?? ?????????????????????????????????????# #??? | | ?????????????????????????????????????????# #??? | | ?????????????????????????????????????????# #??? | | ?????????????????????????????????????????# #??? | | ?????????????????????????????????????????# #??? | | ?????????????????????????????????????????# #??? | | ?????????????????????????????????????????# # | | ????????????????????????" ###+###### " | | ????????????????????????" % +??? | | ????????????????????????" #??? | +----------------------------------------------------+ Best States ------------- Heat Dissipation 77 Coolant Potential 80 Energy Generation 51 Energy Capacity 2750 Matter Stores 600 Matter Capacity 600 Sight Range 23 Robot Scan Range 30 Terrain Scan Range 20 Terrain Scan Density 210 Jamming Range 16 Armor Coverage 1500 Resistance: TH 30 Resistance: EM 15 Core Shielding 20 Propulsion Shielding 66 Utility Shielding 66 Weapon Cycling 20 Evasion (%) 63 Targeting Accuracy 6 Target Analysis 6 Core Analysis 6 Armor Integrity Analysis 50 Recoil Reduction 2 Matter Filtering 30 Offensive Hacking 20 Defensive Hacking 12 Item Schematics ----------------- Combat Drone Bay | -7/Data Miner | Free Lgt. Regenerative Plating | -7/Data Miner | Free Exp. Flexi-carbon Leg | -7/Data Miner | Free Exp. Cesium-ion Thruster | -7/Data Miner | Free Exp. Sensor Array | -7/Data Miner | Free Exp. ECM Suite | -7/Data Miner | Free Cloaking Device | -7/Data Miner | Free Mni. Smartbomb Launcher | -7/Data Miner | Free Plasma Sword | -7/Data Miner | Free Imp. Utility Shielding | -6/Factory | Hacked Adv. Hacking Suite | -5/Factory | Hacked Robot Schematics ------------------ S-27 Virus | -7/Data Miner | Free G-50 Soldier | -7/Data Miner | Free L-41 Fighter | -7/Data Miner | Free H-66 Slayer | -7/Data Miner | Free P-70 Sage | -7/Data Miner | Free I-36 Angel | -7/Data Miner | Free Fabricated ------------ Imp. Utility Shielding | x2 | -6/Factory Lgt. Regenerative Plating | x1 | -6/Factory Lgt. Regenerative Plating | x1 | -6/Factory Imp. Utility Shielding | x2 | -1/Access Alien Tech Used ----------------- None Achievements -------------- None Challenges ------------ None Game ------ Seed AlloyCorruptionDevice Manual? 0 Play Time 02:58:58 Cumulative 654.0 hours Start 2019.10.26 @ 12:08:46 End 2019.10.26 @ 15:52:33 Sessions 3 Manual Loads 0 Difficulty Rogue Special Mode None Game No. 159 Rogue 159 Adventurer 0 Explorer 0 Win Type - Total 27 Types 19/0/2/3/2/0/1 Lore% 96 Gallery% 96 Achievement% 88 Wizard Run 0 Options --------- ASCII 0 Keyboard 1 Movement Numpad Keybinds 0 Fullscreen 1 Font 18/SmallcapsGlow Map View 76x50 Tactical HUD 1 Map Filters NONE Filters NONE Steam 1 RUN: f4f59d3e-9a10-4ffe-a6bd-ec11ba7ea4e1